Cogmind - Beta 14 @@@ ROGUE MODE // 2024.08.22 @ 00:06:16 Player: Nell Result: Destroyed by D-53 Grenadier with Mini Grenade Launcher Performance ------------- Evolutions (0) 0 Regions Visited (4) 800 Robots Destroyed (7) 35 Value Destroyed (178) 178 Prototype IDs (0) 0 Alien Tech Used (0) 0 Bonus (0) 0 TOTAL SCORE: 1013 Bonus ------- None Cogmind --------- Core Integrity 0/250 Matter 214/300 Energy 176/250 System Corruption 0% Temperature Cool (4) Movement Walking (120) Location -9/Mines Parts ------- > --- POWER (1) -------- Ion Engine > --- PROPULSION (2) --- Flexi-carbon Leg Flexi-carbon Leg > --- UTILITY (2) ------ Small Storage Unit > --- WEAPON (2) ------- Grenade Launcher > --- INVENTORY (8) ---- Light Ion Engine Light Ion Engine Aluminum Leg Aluminum Leg Improved Heat Sink Makeshift System Restoration Module Assault Rifle Peak State ------------ > --- POWER ------------ Ion Engine > --- PROPULSION ------- Flexi-carbon Leg Flexi-carbon Leg > --- UTILITY ---------- Small Storage Unit Seismic Detector > --- WEAPON ----------- Grenade Launcher Grenade Launcher > --- INVENTORY -------- Light Ion Engine Light Ion Engine Aluminum Leg Aluminum Leg Improved Heat Sink Makeshift System Restoration Module Assault Rifle [Rating: 16] Favorites ----------- Power Ion Engine Engine Ion Engine Propulsion Aluminum Leg Leg Aluminum Leg Utility Small Storage Unit Device Seismic Detector Storage Small Storage Unit Weapon Medium Laser Energy Gun Medium Laser Ballistic Gun Assault Rifle Launcher Grenade Launcher Build | -11 -10 -10 -10 -9 ------- Run | Yrd Mat Min Exi Min Slots Evolved . | . . . . . Power . | . . . . . Propulsion . | . . . . . Utility . | . . . . . Weapon . | . . . . . Parts Attached 16 | 8 2 1 . 5 Power 2 | 1 . . . 1 Engine 2 | 1 . . . 1 Core . | . . . . . Reactor . | . . . . . Propulsion 5 | 2 . . . 3 Treads . | . . . . . Leg 5 | 2 . . . 3 Wheel . | . . . . . Hover . | . . . . . Flight . | . . . . . Utility 2 | 2 . . . . Device 1 | 1 . . . . Storage 1 | 1 . . . . Processor . | . . . . . Hackware . | . . . . . Protection . | . . . . . Artifact . | . . . . . Weapon 7 | 3 2 1 . 1 Energy Gun 3 | 2 1 . . . Energy Cannon . | . . . . . Ballistic Gun 2 | 1 1 . . . Ballistic Cannon . | . . . . . Launcher 2 | . . 1 . 1 Special Weapon . | . . . . . Impact Weapon . | . . . . . Slashing Weapon . | . . . . . Piercing Weapon . | . . . . . Special Melee Weapon . | . . . . . Unidentified Prototypes . | . . . . . Parts Lost 4 | . . . . 4 Power 1 | . . . . 1 Propulsion . | . . . . . Utility 1 | . . . . 1 Weapon 2 | . . . . 2 Highest Loss Streak 4 | . . . . 4 To Critical Strikes . | . . . . . Average Slot Usage (%) 99 | . 100 100 100 95 Engine 13 | . 14 14 14 13 Leg 28 | . 28 28 28 28 Device 13 | . 14 14 14 13 Storage 14 | . 14 14 14 14 Energy Gun 13 | . 12 14 14 11 Ballistic Gun 1 | . 15 . . . Launcher 12 | . . 13 14 15 Peak Build Rating 16 | 7 7 8 8 16 Average Rating 7 | 5 7 7 8 9 On Entrance 6 | . 7 7 8 8 Naked Turns . | . . . . . Heaviest Build 17 | 14 15 16 16 17 Greatest Support 40 | 20 20 20 20 40 Greatest Overweight (x) . | . . . . . Average Overweight (x) . | . . . . . Largest Inventory Capacity 8 | 8 8 8 8 8 Average Capacity 7 | 6 8 8 8 8 Most Carried 8 | 3 7 8 8 8 Average Carried 7 | 1 4 7 8 7 Final Capacity 8 | 8 8 8 8 8 Final Carried 8 | 3 7 8 8 7 Class Distribution -------------------- 73% | Mutant 26% | Commander-Mutant Dominant Class ---------------- Mutant | -10/Materials Mutant | -10/Mines Mutant | -10/Exiles Commander-Mutant | -9/Mines Resources | -11 -10 -10 -10 -9 ----------- Run | Yrd Mat Min Exi Min Matter Collected 403 | 189 47 76 . 91 Remotely . | . . . . . Salvage Created 245 | 23 47 133 . 42 Parts 14 | 5 2 7 . . Haulers Intercepted 1 | . 1 . . . Recyclers Shooed . | . . . . . Parts Field Recycled . | . . . . . Retrieved Matter . | . . . . . Parts Self-Destructed . | . . . . . Prevented . | . . . . . Kills | -11 -10 -10 -10 -9 ------- Run | Yrd Mat Min Exi Min Combat Hostiles Destroyed 13 | . . 4 . 9 Guns 3 | . . 3 . . AOE 10 | . . 1 . 9 Classes Destroyed 4 | 1 1 1 . 1 Tunneler 2 | 1 . 1 . . Hauler 1 | . 1 . . . Grunt 4 | . . 4 . . Assembled 9 | . . . . 9 Best Kill Streak 9 | 1 1 2 . 9 Combat Bots Only 9 | . . 2 . 9 Max Kills in Single Turn 3 | 1 1 1 . 3 Gunslinging . | . . . . . Exploded 3 | . . 1 . 3 Melee . | . . . . . Uniques/NPCs Destroyed . | . . . . . Combat | -11 -10 -10 -10 -9 -------- Run | Yrd Mat Min Exi Min Hostile Shots Fired 82 | . 11 12 . 59 Missed 33 | . 6 5 . 22 Damage Taken 895 | . 45 107 . 743 Core 253 | . 15 3 . 235 Absorbed by Shields . | . . . . . Core Remaining (%) 100 | 100 . . . . Volleys Fired 23 | 2 2 10 . 9 Largest 2 | 2 2 2 . 2 Hottest 80 | 60 60 80 . 80 Shots Fired 38 | 4 4 16 . 14 Gun 23 | 4 4 10 . 5 Cannon . | . . . . . Launcher 15 | . . 6 . 9 Special . | . . . . . Kinetic 4 | 2 2 . . . Thermal 19 | 2 2 10 . 5 Explosive 15 | . . 6 . 9 Electromagnetic . | . . . . . Robot Hit Streak 5 | 1 2 5 . 5 Robot Miss Streak 4 | 2 1 4 . 1 Penetration Max . | . . . . . Secondary Targets . | . . . . . Shots Hit Robots 23 | 1 3 9 . 10 Core Hits 39 | 1 2 12 . 24 Critical Kills . | . . . . . Critical Parts Destroyed . | . . . . . Critical Strikes 1 | . . 1 . . Burn 1 | . . 1 . . Melee Attacks . | . . . . . Impact . | . . . . . Slashing . | . . . . . Piercing . | . . . . . Sneak Attacks . | . . . . . Combat Hostiles . | . . . . . Follow-up Attacks . | . . . . . Damage Inflicted 879 | 12 37 222 . 608 Guns 169 | 10 34 74 . 51 Cannons . | . . . . . Explosions 692 | . . 137 . 555 Melee . | . . . . . Ramming 18 | 2 3 11 . 2 Kinetic 13 | . 13 . . . Thermal 156 | 10 21 74 . 51 Explosive 692 | . . 137 . 555 Electromagnetic . | . . . . . Impact . | . . . . . Slashing . | . . . . . Piercing . | . . . . . Highest Corruption . | . . . . . Average Corruption . | . . . . . Corruption Purged . | . . . . . Corruption Blocked . | . . . . . Overload Shots . | . . . . . Overflow Damage 18 | . . . . 18 Projectiles . | . . . . . Explosions 18 | . . . . 18 Melee . | . . . . . Knockbacks . | . . . . . Impact . | . . . . . Kinetic . | . . . . . Secondary . | . . . . . Self-Inflicted Damage 6 | . . 6 . . Shots 1 | . . 1 . . Rammed . | . . . . . Targets Rammed 5 | 1 1 2 . 1 Kicked 5 | 1 1 2 . 1 Crushed . | . . . . . Highest Temperature 117 | . . 117 . 65 Average Temperature 39 | . . 43 . 32 Received Heat Transfer 99 | . 9 78 . 12 Siege Activations . | . . . . . Robots Corrupted . | . . . . . Combat Hostiles . | . . . . . Parts Fried . | . . . . . Impact Corruptions . | . . . . . Robots Melted . | . . . . . Combat Hostiles . | . . . . . Parts Melted . | . . . . . Heat Transferred 519 | 25 50 296 . 148 Parts Sabotaged . | . . . . . Parts Stolen . | . . . . . Parts Stripped . | . . . . . Power Chain Reactions . | . . . . . Alert | -11 -10 -10 -10 -9 ------- Run | Yrd Mat Min Exi Min Peak Influence 150 | 5 10 150 . 7 Initial 3 | . 3 3 . . Average 50 | 1 6 81 . . Maximum Alert Level . | . . . . . Low Security (%) 100 | 100 100 100 . 100 Level 1 . | . . . . . Level 2 . | . . . . . Level 3 . | . . . . . Level 4 . | . . . . . Level 5 . | . . . . . High Security . | . . . . . Max Security . | . . . . . Squads Dispatched 1 | . 1 . . . Investigation . | . . . . . Extermination . | . . . . . Reinforcement 1 | . 1 . . . Assault . | . . . . . Garrison . | . . . . . Intercept . | . . . . . Searches Triggered . | . . . . . Construction Impeded . | . . . . . Haulers Reinforced . | . . . . . Active Scanning Responses . | . . . . . Cargo Convoy Interrupts . | . . . . . Stealth | -11 -10 -10 -10 -9 --------- Run | Yrd Mat Min Exi Min Distress Signals . | . . . . . Communications Jammed . | . . . . . Distress Signals . | . . . . . Times Spotted 29 | . 5 4 . 20 Peak Tracking Total 20 | . 6 2 . 20 Tactical Retreats 1 | . . . . 1 Traps | -11 -10 -10 -10 -9 ------- Run | Yrd Mat Min Exi Min Traps Triggered . | . . . . . Indirectly . | . . . . . Trap Hack Attempts . | . . . . . Triggered . | . . . . . Disarmed . | . . . . . Reprogrammed . | . . . . . Reused . | . . . . . Traps Extracted . | . . . . . Installed . | . . . . . Triggered . | . . . . . Machines | -11 -10 -10 -10 -9 ---------- Run | Yrd Mat Min Exi Min Machines Disabled . | . . . . . Max in Single Turn . | . . . . . Machines Repaired . | . . . . . Machines Dismantled . | . . . . . Machines Sabotaged . | . . . . . Overloaded Fab Kills . | . . . . . Hacking | -11 -10 -10 -10 -9 --------- Run | Yrd Mat Min Exi Min Machines Accessed 3 | . 1 . 2 . Terminals 1 | . 1 . . . Fabricators . | . . . . . Repair Stations . | . . . . . Recycling Units . | . . . . . Scanalyzers . | . . . . . Garrison Access . | . . . . . Total Hacks 7 | . 2 . 5 . Successful 6 | . 1 . 5 . Failed 1 | . 1 . . . Catastrophic . | . . . . . Database Lockouts . | . . . . . Manual . | . . . . . Terminals 2 | . 2 . . . Fabricators . | . . . . . Repair Stations . | . . . . . Recycling Units . | . . . . . Scanalyzers . | . . . . . Garrison Access . | . . . . . Terminal Hacks 6 | . 1 . 5 . Record 5 | . . . 5 . Robot Analysis 1 | . 1 . . . Fabricator Hacks . | . . . . . Repair Station Hacks . | . . . . . Recycling Unit Hacks . | . . . . . Scanalyzer . | . . . . . Garrison Access Hacks . | . . . . . Unauthorized Hacks . | . . . . . Terminals . | . . . . . Fabricators . | . . . . . Repair Stations . | . . . . . Recycling Units . | . . . . . Scanalyzers . | . . . . . Garrison Access . | . . . . . Data Cores Recovered . | . . . . . Used . | . . . . . Hacking Detections 1 | . 1 . . . Full Trace Events . | . . . . . Feedback Events . | . . . . . Feedback Blocked . | . . . . . Robot Schematics Acquired . | . . . . . Robots Built . | . . . . . Authchips . | . . . . . Time . | . . . . . Total Robot Build Rating . | . . . . . Part Schematics Acquired . | . . . . . Parts Built . | . . . . . Authchips . | . . . . . Time . | . . . . . Total Part Build Rating . | . . . . . Parts Repaired . | . . . . . Time . | . . . . . Parts Recycled . | . . . . . Recycled Matter . | . . . . . Retrieved Matter . | . . . . . Retrieved Components . | . . . . . Parts Scanalyzed . | . . . . . Part Schematics Acquired . | . . . . . Parts Damaged . | . . . . . Bothacking | -11 -10 -10 -10 -9 ------------ Run | Yrd Mat Min Exi Min Used RIF Installer . | . . . . . Robots Hacked . | . . . . . Non-combat . | . . . . . Combat . | . . . . . Robot Hacks Applied . | . . . . . Relay Couplers Released . | . . . . . Fabnet Peak Effective % . | . . . . . Robots Rewired 5 | . . . 5 . Allies Hacked . | . . . . . Hacks Repelled . | . . . . . Allies | -11 -10 -10 -10 -9 -------- Run | Yrd Mat Min Exi Min Total Allies 5 | . . . 5 . Largest Group 5 | . . . 5 5 Highest-Rated Group 53 | . . . 53 53 Highest-Rated Ally 21 | . . . 21 21 Total Orders . | . . . . . Ally Attacks 31 | . . . . 31 Total Damage 373 | . . . . 373 Kills 7 | . . . . 7 Allies Corrupted . | . . . . . Allies Melted . | . . . . . Intel | -11 -10 -10 -10 -9 ------- Run | Yrd Mat Min Exi Min Robot Analysis Total 1 | . 1 . . . Derelict Logs Recovered 1 | . . 1 . . Drone Launches . | . . . . . Drone Recoveries . | . . . . . Exploration | -11 -10 -10 -10 -9 ------------- Run | Yrd Mat Min Exi Min Turns Passed 1529 | 92 112 508 686 131 Spaces Moved 1132 | 59 82 391 516 84 Core 1 | 1 . . . . Treads . | . . . . . Legs 1131 | 58 82 391 516 84 Wheels . | . . . . . Hover . | . . . . . Flight . | . . . . . Fastest Speed 50 | 50 120 120 120 120 Average Speed 119 | 118 120 120 120 120 Slowest Speed 120 | 120 120 120 120 120 Overloaded Moves . | . . . . . Propulsion Burnouts . | . . . . . Robots Hopped . | . . . . . Cave-ins Triggered . | . . . . . Exploration Rate (%) 42 | 4 26 67 90 27 Regions Visited 4 Branch Regions 3 Pre-discovered Areas 1 | . . . 1 . Known Exits Taken . | . . . . . Unknown Exits Taken 4 | 1 1 1 1 . Scrap Searched 1 | . . 1 . . Spaces Dug . | . . . . . Terrain Destroyed 86 | . . 47 . 39 Melee . | . . . . . Projectile . | . . . . . AOE 86 | . . 47 . 39 Terrain Rammed . | . . . . . Walls Destroyed . | . . . . . Machines Disabled . | . . . . . Actions | -11 -10 -10 -10 -9 --------- Run | Yrd Mat Min Exi Min Total 1260 | 72 90 415 583 100 Wait 8 | . . 5 3 . Move 1128 | 58 81 390 515 84 Hop . | . . . . . Pick Up 12 | 3 4 4 1 . Fast Attach 7 | 7 . . . . Attach 2 | . . . . 2 Detach . | . . . . . Swap 7 | 1 2 1 . 3 Drop 5 | . . 3 1 1 Fire 23 | 2 2 10 . 9 Melee . | . . . . . Ram . | . . . . . Kick 5 | 1 1 2 . 1 Crush . | . . . . . Escape Stasis . | . . . . . Rewire 63 | . . . 63 . Trap . | . . . . . Miscellaneous . | . . . . . Route ------- -11/Scrapyard -10/Materials -10/Mines -10/Exiles -9/Mines History --------- Turn | Location | Event 16 | -11/Scrapyard | Discovered new exit (range 16) 93 | -11/Scrapyard | Entered Materials 198 | -10/Materials | Discovered new exit (range 7) 205 | -10/Materials | Entered Mines 224 | -10/Mines | YI-UF0 nonchalantly dropped a Grenade Launcher on the ground 253 | -10/Mines | Met a Derelict bent on vengeance 301 | -10/Mines | Learned Materials trap positions 305 | -10/Mines | Build established: Mutant 708 | -10/Mines | Deemed a non-threat by the Exiles lab entrance 708 | -10/Mines | Discovered new exit (range 5) 713 | -10/Mines | Entered Exiles 713 | -10/Exiles | Found Exiles lab destroyed 885 | -10/Exiles | Learned location of Zion (-7) 1383 | -10/Exiles | Discovered new exit (range 12) 1399 | -10/Exiles | Entered Mines 1399 | -9/Mines | Accompanied by 5 allies 1407 | -9/Mines | Build established: Commander-Mutant 1483 | -9/Mines | Assembled infested the area 1488 | -9/Mines | Assisted by a Guerilla fighting off Assembled 1504 | -9/Mines | Core integrity fell below 50% 1527 | -9/Mines | Core integrity fell below 20% 1530 | -9/Mines | Destroyed by D-53 Grenadier with Mini Grenade Launcher Last Messages --------------- 01513_ as-01613 destroyed. 01513_ as-20545 destroyed. 01513_ as-09715 destroyed. 01516_ Acquired 58 matter. 01518_ Acquired 6 matter. 01519_ Acquired 16 matter. 01520_ Acquired 11 matter. 01521_ Slug penetrates Wall. 01522_ C-30 ARC bursts open, deploying its payload. 01522_ D-53 Grenadier unfolds itself. 01522_ Mercenary 1b destroyed. 01522_ Grenade Launcher destroyed. 01522_ Mercenary 1a destroyed. 01523_ The unstable cave ceiling collapses. 01524_ Slug penetrates D-53 Grenadier. 01525_ The unstable cave ceiling collapses. 01526_ Commando 1a destroyed. 01526_ Seismic Detector destroyed. 01527_ The unstable cave ceiling collapses. [Achievement: Back For More] Map ----- +----------------------------------------------------+ | ??????????????????????????????## #????????????? | | ???????????????????????????????# ##???????????## | | ??????????????????????????????## ############## | | ??????????????????????????????#! ## | | ??????????????????????????????# ] ] ###### ### | | ??????????????????????????????# [ ## #????# #?# | | ?????????????????????????????## ### #???? #?## | | ?????????????????????????????# ##?# #??? ??## | | ?????????????????????????????# #### #?? ???# | | ?????????????????????????????# #?? ???? | | ?????????????????????????????## #####?## ???? | | ??????????????????????????????## #?????## ?? | | ???????????????????????????????## #??????#### ? # | | ????????????????????????????????# #??????????#? # | | ?????????????? ?????????????????# #??????????? # | | ?????????????? ###?????????????# #?????????? # | | ????????????? #????????????# #????????? | | ????????????? #???????????# #????????# | | ???????????? ###????????# #???????# | | ???????????? ????????# #??????# | | ???????????? #######?# #?????# | | ??????????? # # ### #??### | | ??????????? ## #### #?? | | ?????????? % ## #?? | | ?????????? %% % ## #?? | | ?????????? [ @ ## #?? | | ?????????? d% #?#### ##?? | | ??????????# d #????#####??? | | ??????????? !%= # ##???????????? | | ???????????# ???## #???????????? | | ???????????????????## # ## ##???????????? | | ????????????????????#############??##????????????? | | ?????????????????????????????????????????????????? | | ?????????????????????????????????????????????????? | | ?????????????????????????????????????????????????? | | ?????????????????????????????????????????????????? | | ?????????????????????????????????????????????????? | | ?????????????????????????????????????????????????? | | ?????????????????????????????????????????????????? | | ?????????????????????????????????????????????????? | | ?????????????????????????????????????????????????? | | ?????????????????????????????????????????????????? | | ?????????????????????????????????????????????????? | | ?????????????????????????????????????????????????? | | ?????????????????????????????????????????????????? | | ?????????????????????????????????????????????????? | | ?????????????????????????????????????????????????? | | ?????????????????????????????????????????????????? | | ?????????????????????????????????????????????????? | | ?????????????????????????????????????????????????? | +----------------------------------------------------+ Best States ------------- Heat Dissipation 25 Energy Generation 10 Energy Capacity 250 Matter Stores 250 Matter Capacity 300 Sight Range 16 Terrain Scan Density 10 Evasion (%) 55 Item Schematics ----------------- None Robot Schematics ------------------ None Fabricated ------------ Nothing Alien Tech Used ----------------- None Achievements -------------- Back For More Challenges ------------ None Game ------ Seed ImprovedModifiedArmor Manual? 0 Play Time 00:12:54 Cumulative 30.7 hours Start 2024.08.21 @ 23:55:17 End 2024.08.22 @ 00:06:16 Sessions 1 Manual Loads 0 Difficulty Rogue Special Mode None Game No. 53 Rogue 53 Adventurer 0 Explorer 0 Win Type - Total 0 Types 0/0/0/0/0/0/0/0/0 Lore% 19 Gallery% 37 Achievement% 27 Wizard Run 0 Options --------- Layout 0 ASCII 0 Keyboard 0 Movement Arrows Keybinds 0 Fullscreen 2 Font 24/Smallcaps Map View 76x50 Zoom Use 0% Tactical HUD 1 Map Filters NONE Filters NONE Steam 1 RUN: 818cc02a-008a-4a2c-972e-aaee11c29a1a